Workbook

Sheet Intro
T2: www.boundary-element-method.com
B3: Solving a general linear system of equations
S6: guide to this spreadsheet | V6: https://www.researchgate.net/profile/Stephen_Kirkup/publication/327797680_GLS/data/5ba4fc5245851574f7dd0075/GLS.xlsm?_sg%5B0%5D=Vx8qaGJKpqJ6fgMTsIKsIKH06LaY8RO5LM2mZZcMQNAvrzO00beE943Ro2P30YVJO9tBpDC3iFqgcU8me9JXkQ.zijWNUonemuUka9qvsatTXfvIEbVfGbg_3E2F9SD7Sqp_WhRuMRBtAwmL_sqtpjaJSLaEbQHc3AS0UfyyXPYlw&_sg%5B1%5D=3mZm2o8iQ8-mDSAGFa3wLc3664f1M-PhYT9IOIUKZw4Y6hZJlag23WYr2DdSXB-v11q90fI6MseI2TYrw0eg1TnP3lwgH0v6S6sB9VR2ZyEu.zijWNUonemuUka9qvsatTXfvIEbVfGbg_3E2F9SD7Sqp_WhRuMRBtAwmL_sqtpjaJSLaEbQHc3AS0UfyyXPYlw&_iepl=
S8: guide to gls.bas | V8: https://www.researchgate.net/publication/327797685_gls_bas
S10: guide to regls.bas | V10: https://www.researchgate.net/publication/327797858_regls_bas
R13: On sheet 5x5 we have the solution of a 5x5 system
D23: On sheet 2x2 we have the solution of the 2x2 system
D37: Ref | E37: A Solution Method for the Generalised Linear Systems of Equations Arising in Direct Boundary Element Methods Applied to Problems with Robin Boundary Conditions

Sheet 2x2
B2: Solving a 2x2 general linear sytem of equations
B5: Solution of a General Linear System : dimension = 2 | T5: Guide: Set up the test problem in the brown areas. The test problem date is copied to the yellow areas.
C6: A | J6: B | P6: c | T6: A | W6: x | AA6: B | AD6: y | AF6: Ax | AH6: By | AJ6: c
C7: =T7 -> 4 | D7: =U7 -> -1 | F7: x | H7: = | J7: =AA7 -> 1 | K7: =AB7 -> 1 | M7: y | O7: + | P7: =AJ7 -> -15 | T7: 4 | U7: -1 | W7: -1 | Y7: - | AA7: 1 | AB7: 1 | AD7: 1 | AE7: = | AF7: =MMULT(T7:U8,W7:W8) -> -11 | AG7: - | AH7: =MMULT(AA7:AB8,AD7:AD8) -> 4 | AI7: = | AJ7: =AF7-AH7 -> -15
C8: =T8 -> 3 | D8: =U8 -> 1 | J8: =AA8 -> 2 | K8: =AB8 -> -3 | P8: =AJ8 -> 11 | T8: 3 | U8: 1 | W8: 7 | AA8: 2 | AB8: -3 | AD8: 3 | AF8: 4 | AH8: -7 | AJ8: =AF8-AH8 -> 11
C10: D_alpha | J10: D_beta | P10: f | T10: D_alpha | W10: x | AA10: D_beta | AD10: y | AF10: D_alpha x | AH10: D_beta y | AJ10: f
C11: =T11 -> 0.5 | D11: 0 | F11: x | H11: + | J11: =AA11 -> 0.1 | K11: 0 | M11: y | O11: = | P11: =AJ11 -> -0.4 | T11: 0.5 | U11: 0 | W11: =W7 -> -1 | Y11: + | AA11: 0.1 | AB11: 0 | AD11: =AD7 -> 1 | AE11: = | AF11: =MMULT(T11:U12,W11:W12) -> -0.5 | AG11: + | AH11: =MMULT(AA11:AB12,AD11:AD12) -> 0.1 | AI11: = | AJ11: =AF11+AH11 -> -0.4
C12: 0 | D12: =U12 -> -2 | J12: 0 | K12: =AB12 -> 5 | P12: =AJ12 -> 1 | T12: 0 | U12: -2 | W12: =W8 -> 7 | AA12: 0 | AB12: 5 | AD12: =AD8 -> 3 | AF12: -14 | AH12: 15 | AJ12: =AF12+AH12 -> 1
M17: x | O17: = | P17: -1
P18: 7 | AB18: source | AC18: http://www.boundary-element-method.com/Excel_VBA/gls.xlsm
AB19: guide | AC19: http://www.boundary-element-method.com/Excel_VBA/gls_bas.pdf
M20: y | O20: = | P20: 1
P21: 3
B25: Stored information from the gls module. This can be re-used by the regls module to find a 'quick' solution if only c and f are changed. | T25: Guide: A and B are assumed tobe 'fixed' (as above). Set up the test problem in the brown areas.
C26: new 'A' | J26: new 'B' | O26: xory | P26: perm | T26: A | W26: x | AA26: B | AD26: y | AF26: Ax | AH26: By | AJ26: c
C27: -2.6 | D27: 2.2 | J27: -8 | K27: 0.2 | O27: FALSE | P27: 2 | T27: =T7 -> 4 | U27: =U7 -> -1 | W27: 5 | Y27: - | AA27: =AA7 -> 1 | AB27: =AB7 -> 1 | AD27: 2 | AE27: = | AF27: =MMULT(T27:U28,W27:W28) -> 23 | AG27: - | AH27: =MMULT(AA27:AB28,AD27:AD28) -> -5 | AI27: = | AJ27: =AF27-AH27 -> 28
C28: 0.6923076923 | D28: -2.923076923 | J28: -6 | K28: -0.6 | O28: TRUE | P28: 1 | T28: =T8 -> 3 | U28: =U8 -> 1 | W28: -3 | AA28: =AA8 -> 2 | AB28: =AB8 -> -3 | AD28: -7 | AF28: 12 | AH28: 25 | AJ28: =AF28-AH28 -> -13
C30: D_alpha | J30: D_beta | P30: f | T30: D_alpha | W30: x | AA30: D_beta | AD30: y | AF30: D_alpha x | AH30: D_beta y | AJ30: f
C31: =T31 -> 0.5 | D31: 0 | F31: x | H31: + | J31: =AA31 -> 0.1 | K31: 0 | M31: y | O31: = | P31: =AJ31 -> 2.7 | T31: =T11 -> 0.5 | U31: =U11 -> 0 | W31: =W27 -> 5 | Y31: + | AA31: =AA11 -> 0.1 | AB31: =AB11 -> 0 | AD31: =AD27 -> 2 | AE31: = | AF31: =MMULT(T31:U32,W31:W32) -> 2.5 | AG31: + | AH31: =MMULT(AA31:AB32,AD31:AD32) -> 0.2 | AI31: = | AJ31: =AF31+AH31 -> 2.7
C32: 0 | D32: =U32 -> -2 | J32: 0 | K32: =AB32 -> 5 | P32: =AJ32 -> -29 | T32: =T12 -> 0 | U32: =U12 -> -2 | W32: =W28 -> -3 | AA32: =AA12 -> 0 | AB32: =AB12 -> 5 | AD32: =AD28 -> -7 | AF32: 6 | AH32: -35 | AJ32: =AF32+AH32 -> -29
B35: new c | D35: new f | M35: x | O35: y
B36: =AJ27 -> 28 | D36: =P31 -> 2.7 | M36: 5 | O36: 2 | T36: source | U36: http://www.boundary-element-method.com/Excel_VBA/regls.xlsm
B37: =AJ28 -> -13 | D37: =P32 -> -29 | M37: -3 | O37: -7 | T37: guide | U37: http://www.boundary-element-method.com/Excel_VBA/regls_bas.pdf

Sheet 5x5
C2: Solving a 5x5 general linear system of equations
B5: Solution of a General Linear System : dimension = 5 | AA5: ='2x2'!$T$5 -> Guide: Set up the test problem in the brown areas. The test problem date is copied to the yellow areas.
C7: A | M7: B | W7: c | AA7: A | AG7: x | AK7: B | AQ7: y | AU7: Ax | AY7: By | BC7: c
C8: =AA8 -> 19 | D8: -32 | E8: -92 | F8: 62 | G8: -82 | I8: x | K8: = | M8: =AK8 -> -0.89 | N8: 0.16 | O8: 0.92 | P8: -0.79 | Q8: -0.96 | S8: y | U8: + | W8: =BC8 -> 0.56 | AA8: 19 | AB8: -32 | AC8: -92 | AD8: 62 | AE8: -82 | AG8: -0.06 | AI8: - | AK8: -0.89 | AL8: 0.16 | AM8: 0.92 | AN8: -0.79 | AO8: -0.96 | AQ8: 6 | AS8: = | AU8: =MMULT(AA8:AE12,AG8:AG12) -> -7.44 | AW8: - | AY8: =MMULT(AK8:AO12,AQ8:AQ12) -> -8 | BA8: = | BC8: =AU8-AY8 -> 0.56
C9: 93 | D9: 91 | E9: -17 | F9: 42 | G9: 26 | M9: 0.32 | N9: 0.83 | O9: -0.41 | P9: -0.47 | Q9: 0.55 | W9: =BC9 -> -15.67 | AA9: 93 | AB9: 91 | AC9: -17 | AD9: 42 | AE9: 26 | AG9: -0.04 | AK9: 0.32 | AL9: 0.83 | AM9: -0.41 | AN9: -0.47 | AO9: 0.55 | AQ9: 3 | AU9: -12.36 | AY9: 3.31 | BC9: =AU9-AY9 -> -15.67
C10: 76 | D10: 98 | E10: -5 | F10: -92 | G10: -66 | M10: 0.67 | N10: 0.87 | O10: 0.94 | P10: -0.37 | Q10: 0.58 | W10: =BC10 -> 1.83 | AA10: 76 | AB10: 98 | AC10: -5 | AD10: -92 | AE10: -66 | AG10: 0.08 | AK10: 0.67 | AL10: 0.87 | AM10: 0.94 | AN10: -0.37 | AO10: 0.58 | AQ10: -9 | AU10: -4.8 | AY10: -6.63 | BC10: =AU10-AY10 -> 1.83
C11: -31 | D11: -91 | E11: -94 | F11: 13 | G11: -80 | M11: -0.53 | N11: 0.42 | O11: -0.73 | P11: -0.46 | Q11: -0.12 | W11: =BC11 -> -5.38 | AA11: -31 | AB11: -91 | AC11: -94 | AD11: 13 | AE11: -80 | AG11: -0.03 | AK11: -0.53 | AL11: 0.42 | AM11: -0.73 | AN11: -0.46 | AO11: -0.12 | AQ11: 2 | AU11: -0.81 | AY11: 4.57 | BC11: =AU11-AY11 -> -5.38
C12: -91 | D12: 11 | E12: -89 | F12: -4 | G12: -37 | M12: -0.57 | N12: 0.96 | O12: -0.14 | P12: 0.82 | Q12: 0.9 | W12: =BC12 -> 2.7 | AA12: -91 | AB12: 11 | AC12: -89 | AD12: -4 | AE12: -37 | AG12: -0.02 | AK12: -0.57 | AL12: 0.96 | AM12: -0.14 | AN12: 0.82 | AO12: 0.9 | AQ12: -7 | AU12: -1.24 | AY12: -3.94 | BC12: =AU12-AY12 -> 2.7
C15: D_alpha | M15: D_beta | W15: f | AA15: D_alpha | AG15: x | AK15: D_beta | AQ15: y | AT15: D_alpha x | AX15: D_beta y | BC15: f
C16: =AA16 -> 8 | D16: 0 | E16: 0 | F16: 0 | G16: 0 | I16: x | K16: + | M16: =AK16 -> 2.5 | N16: 0 | O16: 0 | P16: 0 | Q16: 0 | S16: y | U16: = | W16: =BC16 -> 14.52 | AA16: 8 | AB16: 0 | AC16: 0 | AD16: 0 | AE16: 0 | AG16: =AG8 -> -0.06 | AI16: + | AK16: 2.5 | AL16: 0 | AM16: 0 | AN16: 0 | AO16: 0 | AQ16: =AQ8 -> 6 | AS16: = | AU16: =MMULT(AA16:AE20,AG16:AG20) -> -0.48 | AW16: + | AY16: =MMULT(AK16:AO20,AQ16:AQ20) -> 15 | BA16: = | BC16: =AU16+AY16 -> 14.52
C17: 0 | D17: 66 | E17: 0 | F17: 0 | G17: 0 | M17: 0 | N17: -0.3 | O17: 0 | P17: 0 | Q17: 0 | W17: =BC17 -> -3.54 | AA17: 0 | AB17: 66 | AC17: 0 | AD17: 0 | AE17: 0 | AG17: =AG9 -> -0.04 | AK17: 0 | AL17: -0.3 | AM17: 0 | AN17: 0 | AO17: 0 | AQ17: =AQ9 -> 3 | AU17: -2.64 | AY17: -0.9 | BC17: =AU17+AY17 -> -3.54
C18: 0 | D18: 0 | E18: 0 | F18: 0 | G18: 0 | M18: 0 | N18: 0 | O18: -0.96 | P18: 0 | Q18: 0 | W18: =BC18 -> 8.64 | AA18: 0 | AB18: 0 | AC18: 0 | AD18: 0 | AE18: 0 | AG18: =AG10 -> 0.08 | AK18: 0 | AL18: 0 | AM18: -0.96 | AN18: 0 | AO18: 0 | AQ18: =AQ10 -> -9 | AU18: 0 | AY18: 8.64 | BC18: =AU18+AY18 -> 8.64
C19: 0 | D19: 0 | E19: 0 | F19: -53 | G19: 0 | M19: 0 | N19: 0 | O19: 0 | P19: -0.74 | Q19: 0 | W19: =BC19 -> 0.11 | AA19: 0 | AB19: 0 | AC19: 0 | AD19: -53 | AE19: 0 | AG19: =AG11 -> -0.03 | AK19: 0 | AL19: 0 | AM19: 0 | AN19: -0.74 | AO19: 0 | AQ19: =AQ11 -> 2 | AU19: 1.59 | AY19: -1.48 | BC19: =AU19+AY19 -> 0.11
C20: 0 | D20: 0 | E20: 0 | F20: 0 | G20: 45 | M20: 0 | N20: 0 | O20: 0 | P20: 0 | Q20: 0 | W20: =BC20 -> -0.9 | AA20: 0 | AB20: 0 | AC20: 0 | AD20: 0 | AE20: 45 | AG20: =AG12 -> -0.02 | AK20: 0 | AL20: 0 | AM20: 0 | AN20: 0 | AO20: 0 | AQ20: =AQ12 -> -7 | AU20: -0.9 | AY20: 0 | BC20: =AU20+AY20 -> -0.9
Q25: x | R25: = | S25: -0.06 | V25: y | W25: = | X25: 6
S26: -0.04 | X26: 3 | AL26: source | AM26: http://www.boundary-element-method.com/Excel_VBA/gls.xlsm
S27: 0.08 | X27: -9 | AL27: guide | AM27: http://www.boundary-element-method.com/Excel_VBA/gls_bas.pdf
S28: -0.03 | X28: 2
S29: -0.02 | X29: -7
B33: ='2x2'!B25 -> Stored information from the gls module. This can be re-used by the regls module to find a 'quick' solution if only c and f are changed. | AA33: ='2x2'!T25 -> Guide: A and B are assumed tobe 'fixed' (as above). Set up the test problem in the brown areas.
C35: ='2x2'!C26:D26 -> new 'A' | M35: new 'B' | U35: ='2x2'!O26 -> xory | W35: ='2x2'!P26 -> perm | AA35: A | AG35: x | AK35: B | AQ35: y | AU35: Ax | AY35: By | BC35: c
C36: 94.024 | D36: -0.4163636364 | E36: -17 | F36: -0.1164150943 | G36: -0.55 | M36: -0.356 | N36: 0.4848484848 | O36: -0.9583333333 | P36: 1.169811321 | Q36: 1.822222222 | U36: TRUE | W36: 2 | AA36: =AA8 -> 19 | AB36: -32 | AC36: -92 | AD36: 62 | AE36: -82 | AG36: 0.3 | AI36: - | AK36: =AK8 -> -0.89 | AL36: 0.16 | AM36: 0.92 | AN36: -0.79 | AO36: -0.96 | AQ36: 24 | AS36: = | AU36: =MMULT(AA36:AE40,AG36:AG40) -> -184.5 | AW36: - | AY36: =MMULT(AK36:AO40,AQ36:AQ40) -> -54.39 | BA36: = | BC36: =AU36-AY36 -> -130.11
C37: -0.9872373011 | D37: -1.321049713 | E37: -105.7830341 | F37: -0.8790802669 | G37: -1.442980516 | M37: 0.128 | N37: -1.378787879 | O37: 0.4270833333 | P37: 0.7924528302 | Q37: -0.5777777778 | U37: FALSE | W37: 5 | AA37: 93 | AB37: 91 | AC37: -17 | AD37: 42 | AE37: 26 | AG37: -1.3 | AK37: 0.32 | AL37: 0.83 | AM37: -0.41 | AN37: -0.47 | AO37: 0.55 | AQ37: -33 | AU37: -66.2 | AY37: -56.4 | BC37: =AU37-AY37 -> -9.8
C38: 0.171785927 | D38: 0.1770782204 | E38: -70.34776781 | F38: 0.1000040668 | G38: 1.310002682 | M38: 0.268 | N38: -1.484848485 | O38: -0.9791666667 | P38: -1.735849057 | Q38: 1.466666667 | U38: TRUE | W38: 1 | AA38: 76 | AB38: 98 | AC38: -5 | AD38: -92 | AE38: -66 | AG38: 0.4 | AK38: 0.67 | AL38: 0.87 | AM38: 0.94 | AN38: -0.37 | AO38: 0.58 | AQ38: 0 | AU38: -192.6 | AY38: -44.16 | BC38: =AU38-AY38 -> -148.44
C39: 0.8311069514 | D39: 0.05942451771 | E39: -0.2191245641 | F39: 1.825433964 | G39: 0.2499110111 | M39: -0.212 | N39: 1.378787879 | O39: 0.7604166667 | P39: 0.2452830189 | Q39: 1.777777778 | U39: FALSE | W39: 3 | AA39: -31 | AB39: -91 | AC39: -94 | AD39: 13 | AE39: -80 | AG39: -0.5 | AK39: -0.53 | AL39: 0.42 | AM39: -0.73 | AN39: -0.46 | AO39: -0.12 | AQ39: 57 | AU39: -95.1 | AY39: -50.64 | BC39: =AU39-AY39 -> -44.46
C40: -0.3477410023 | D40: 0.7406406152 | E40: 0.3065397275 | F40: 0.4702638449 | G40: 0.4783804475 | M40: -0.228 | N40: -0.1666666667 | O40: 0.1458333333 | P40: -0.07547169811 | Q40: 0.8222222222 | U40: FALSE | W40: 4 | AA40: -91 | AB40: 11 | AC40: -89 | AD40: -4 | AE40: -37 | AG40: 2 | AK40: -0.57 | AL40: 0.96 | AM40: -0.14 | AN40: 0.82 | AO40: 0.9 | AQ40: -18 | AU40: -149.2 | AY40: -14.82 | BC40: =AU40-AY40 -> -134.38
C43: D_alpha | M43: D_beta | W43: f | AA43: D_alpha | AG43: x | AK43: D_beta | AQ43: y | AT43: D_alpha x | AX43: D_beta y | BC43: f
C44: =C16 -> 8 | D44: 0 | E44: 0 | F44: 0 | G44: 0 | I44: x | K44: + | M44: =M16 -> 2.5 | N44: 0 | O44: 0 | P44: 0 | Q44: 0 | S44: y | U44: = | W44: =BC44 -> 62.4 | AA44: =AA16 -> 8 | AB44: 0 | AC44: 0 | AD44: 0 | AE44: 0 | AG44: =AG36 -> 0.3 | AI44: + | AK44: =AK16 -> 2.5 | AL44: 0 | AM44: 0 | AN44: 0 | AO44: 0 | AQ44: =AQ36 -> 24 | AS44: = | AU44: =MMULT(AA44:AE48,AG44:AG48) -> 2.4 | AW44: + | AY44: =MMULT(AK44:AO48,AQ44:AQ48) -> 60 | BA44: = | BC44: =AU44+AY44 -> 62.4
C45: 0 | D45: 66 | E45: 0 | F45: 0 | G45: 0 | M45: 0 | N45: -0.3 | O45: 0 | P45: 0 | Q45: 0 | W45: =BC45 -> -75.9 | AA45: 0 | AB45: 66 | AC45: 0 | AD45: 0 | AE45: 0 | AG45: =AG37 -> -1.3 | AK45: 0 | AL45: -0.3 | AM45: 0 | AN45: 0 | AO45: 0 | AQ45: =AQ37 -> -33 | AU45: -85.8 | AY45: 9.9 | BC45: =AU45+AY45 -> -75.9
C46: 0 | D46: 0 | E46: 0 | F46: 0 | G46: 0 | M46: 0 | N46: 0 | O46: -0.96 | P46: 0 | Q46: 0 | W46: =BC46 -> 0 | AA46: 0 | AB46: 0 | AC46: 0 | AD46: 0 | AE46: 0 | AG46: =AG38 -> 0.4 | AK46: 0 | AL46: 0 | AM46: -0.96 | AN46: 0 | AO46: 0 | AQ46: =AQ38 -> 0 | AU46: 0 | AY46: 0 | BC46: =AU46+AY46 -> 0
C47: 0 | D47: 0 | E47: 0 | F47: -53 | G47: 0 | M47: 0 | N47: 0 | O47: 0 | P47: -0.74 | Q47: 0 | W47: =BC47 -> -15.68 | AA47: 0 | AB47: 0 | AC47: 0 | AD47: -53 | AE47: 0 | AG47: =AG39 -> -0.5 | AK47: 0 | AL47: 0 | AM47: 0 | AN47: -0.74 | AO47: 0 | AQ47: =AQ39 -> 57 | AU47: 26.5 | AY47: -42.18 | BC47: =AU47+AY47 -> -15.68
C48: 0 | D48: 0 | E48: 0 | F48: 0 | G48: 45 | M48: 0 | N48: 0 | O48: 0 | P48: 0 | Q48: 0 | W48: =BC48 -> 90 | AA48: 0 | AB48: 0 | AC48: 0 | AD48: 0 | AE48: 45 | AG48: =AG40 -> 2 | AK48: 0 | AL48: 0 | AM48: 0 | AN48: 0 | AO48: 0 | AQ48: =AQ40 -> -18 | AU48: 90 | AY48: 0 | BC48: =AU48+AY48 -> 90
D51: new c | F51: new f | P51: x | R51: y
D52: =BC36 -> -130.11 | F52: =BC44 -> 62.4 | P52: 0.3 | R52: 24 | AB52: source | AC52: http://www.boundary-element-method.com/Excel_VBA/regls.xlsm
D53: =BC37 -> -9.8 | F53: =BC45 -> -75.9 | P53: -1.3 | R53: -33 | AB53: guide | AC53: http://www.boundary-element-method.com/Excel_VBA/regls_bas.pdf
D54: =BC38 -> -148.44 | F54: =BC46 -> 0 | P54: 0.4 | R54: 0
D55: =BC39 -> -44.46 | F55: =BC47 -> -15.68 | P55: -0.5 | R55: 57
D56: =BC40 -> -134.38 | F56: =BC48 -> 90 | P56: 2 | R56: -18
